Cogmind - Beta 13 @@@ ROGUE MODE // 2024.04.01 @ 22:27:15 Player: MisterCrow Result: Destroyed by G-47 Trooper with Particle Gun Performance ------------- Evolutions (2) 1000 Regions Visited (6) 1200 Robots Destroyed (47) 235 Value Destroyed (1400) 1400 Prototype IDs (3) 60 Alien Tech Used (0) 0 Bonus (0) 0 TOTAL SCORE: 3895 Bonus ------- None Cogmind --------- Core Integrity 0/550 Matter 290/300 Energy 100/100 System Corruption 8% Temperature Cool (9) Movement Core (50) Location -8/Materials Parts ------- > --- POWER (1) -------- (None) > --- PROPULSION (4) --- (None) > --- UTILITY (3) ------ (None) > --- WEAPON (3) ------- (None) > --- INVENTORY (5) ---- Ion Engine Compact Wheel Hacking Suite Peak State ------------ > --- POWER ------------ Reinforced Deuterium Engine > --- PROPULSION ------- Aluminum Leg Aluminum Leg Aluminum Leg Carbon-fiber Leg > --- UTILITY ---------- Small Storage Unit Terrain Scanner Terrain Scan Processor > --- WEAPON ----------- Heavy Laser Advanced Beam Cannon Assault Cannon > --- INVENTORY -------- Ion Engine Compact Wheel Hacking Suite Particle Gun Heavy Assault Rifle Improved Grenade Launcher [Rating: 25] Favorites ----------- Power Ion Engine Engine Ion Engine Propulsion Aluminum Leg Leg Aluminum Leg Wheel Compact Wheel Utility Small Storage Unit Device Terrain Scanner Storage Small Storage Unit Processor Targeting Computer Weapon Heavy Assault Rifle Energy Gun Medium Laser Energy Cannon Advanced Beam Cannon Ballistic Gun Heavy Assault Rifle Ballistic Cannon Assault Cannon Launcher Improved Grenade Launcher Slashing Weapon Katana Build | -11 -10 -9 -9 -9 -8 -8 ------- Run | Yrd Mat Mat Min Exi Min Mat Slots Evolved 4 | . . 2 . . . 2 Power . | . . . . . . . Propulsion 2 | . . 1 . . . 1 Utility 1 | . . . . . . 1 Weapon 1 | . . 1 . . . . Parts Attached 49 | 7 2 9 . . 15 16 Power 3 | 1 . . . . 1 1 Engine 3 | 1 . . . . 1 1 Core . | . . . . . . . Reactor . | . . . . . . . Propulsion 13 | 3 . 1 . . 6 3 Treads . | . . . . . . . Leg 12 | 2 . 1 . . 6 3 Wheel 1 | 1 . . . . . . Hover . | . . . . . . . Flight . | . . . . . . . Utility 5 | 1 2 . . . . 2 Device 2 | . 1 . . . . 1 Storage 1 | 1 . . . . . . Processor 2 | . 1 . . . . 1 Hackware . | . . . . . . . Protection . | . . . . . . . Artifact . | . . . . . . . Weapon 28 | 2 . 8 . . 8 10 Energy Gun 9 | 1 . 5 . . 1 2 Energy Cannon 4 | . . 1 . . 2 1 Ballistic Gun 7 | 1 . 1 . . 2 3 Ballistic Cannon 1 | . . . . . 1 . Launcher 6 | . . 1 . . 2 3 Special Weapon . | . . . . . . . Impact Weapon . | . . . . . . . Slashing Weapon 1 | . . . . . . 1 Piercing Weapon . | . . . . . . . Special Melee Weapon . | . . . . . . . Unidentified Prototypes 1 | . . 1 . . . . Parts Lost 18 | . . 2 . . 2 14 Power 1 | . . . . . . 1 Propulsion 6 | . . 1 . . 1 4 Utility 2 | . . . . . . 2 Weapon 9 | . . 1 . . 1 7 Highest Loss Streak 8 | . . 1 . . 1 8 To Critical Strikes . | . . . . . . . Average Slot Usage (%) 87 | . 89 87 88 88 98 76 Engine 10 | . 14 11 11 11 11 8 Leg 25 | . 28 24 22 22 31 24 Device 2 | . 2 . . . . 7 Storage 10 | . 14 11 11 11 11 8 Processor 7 | . 1 11 11 11 11 3 Energy Gun 8 | . 14 13 11 11 . 7 Energy Cannon 5 | . . 3 11 11 7 4 Ballistic Gun 11 | . 14 11 11 11 18 5 Ballistic Cannon 2 | . . . . . 5 5 Naked Turns 32 | . . . . . . 32 Heaviest Build 34 | 14 15 19 19 19 27 34 Greatest Support 45 | 20 20 30 20 20 35 45 Greatest Overweight (x) 7 | 1 . . . . 1 7 Average Overweight (x) . | . . . . . . . Largest Inventory Capacity 8 | 8 8 8 8 8 8 8 Average Capacity 7 | 6 8 8 8 8 8 7 Most Carried 8 | 6 7 8 8 7 8 8 Average Carried 6 | 3 5 7 7 7 7 5 Final Capacity 8 | 8 8 8 8 8 8 5 Final Carried 8 | 3 7 8 7 7 8 3 Class Distribution -------------------- 37% | Gunner 22% | Scavenger-Gunner 20% | Mutant 17% | Scavenger-Skirmisher Dominant Class ---------------- Mutant | -10/Materials Gunner | -9/Materials Gunner | -9/Mines Gunner | -9/Exiles Scavenger-Gunner | -8/Mines Scavenger-Skirmisher | -8/Materials Resources | -11 -10 -9 -9 -9 -8 -8 ----------- Run | Yrd Mat Mat Min Exi Min Mat Matter Collected 1237 | 266 40 168 . . 434 329 Remotely . | . . . . . . . Salvage Created 1706 | . 78 291 . . 660 677 Parts 110 | . 9 24 . . 40 37 Haulers Intercepted . | . . . . . . . Recyclers Shooed 1 | . . . . . 1 . Parts Field Recycled . | . . . . . . . Retrieved Matter . | . . . . . . . Parts Self-Destructed . | . . . . . . . Prevented . | . . . . . . . Kills | -11 -10 -9 -9 -9 -8 -8 ------- Run | Yrd Mat Mat Min Exi Min Mat Combat Hostiles Destroyed 32 | . 3 4 . . 14 11 Melee 1 | . . . . . . 1 Guns 13 | . 3 4 . . 4 2 Cannons 13 | . . . . . 9 4 AOE 5 | . . . . . 1 4 Classes Destroyed 11 | . 3 4 . . . 4 Worker 5 | . 1 2 . . 2 . Builder 3 | . 1 . . . . 2 Recycler 5 | . . 1 . . 2 2 Operator 1 | . . . . . . 1 Watcher 1 | . . . . . . 1 Swarmer 6 | . 3 . . . 3 . Grunt 18 | . . 1 . . 10 7 Brawler 2 | . . 1 . . 1 . Duelist 1 | . . . . . . 1 Sentry 4 | . . 2 . . . 2 Heavy 1 | . . . . . . 1 Best Kill Streak 4 | . 3 3 . . 4 4 Combat Bots Only 3 | . 3 2 . . 3 3 Max Kills in Single Turn 4 | . 1 1 . . 2 4 Gunslinging . | . . . . . . . Exploded 2 | . . . . . 1 2 Melee 1 | . . . . . . 1 Uniques/NPCs Destroyed . | . . . . . . . Combat | -11 -10 -9 -9 -9 -8 -8 -------- Run | Yrd Mat Mat Min Exi Min Mat Hostile Shots Fired 191 | . 16 18 2 . 58 97 Missed 59 | . 2 6 1 . 19 31 Damage Taken 2862 | . 150 258 14 . 719 1721 Core 769 | . 32 15 . . 164 558 Absorbed by Shields . | . . . . . . . Regen/Repaired (Parts) 37 | . . 37 . . . . Core Remaining (%) 80 | 100 87 . . . 55 . Volleys Fired 92 | . 15 13 . 2 31 31 Largest 3 | . 2 3 . 3 3 3 Hottest 181 | . 60 141 . 141 141 181 Shots Fired 235 | . 30 39 . 6 89 71 Gun 160 | . 30 36 . 4 52 38 Cannon 62 | . . 1 . 2 33 26 Launcher 13 | . . 2 . . 4 7 Special . | . . . . . . . Kinetic 120 | . 15 13 . 2 61 29 Thermal 79 | . . 16 . 4 24 35 Explosive 13 | . . 2 . . 4 7 Electromagnetic 23 | . 15 8 . . . . Robot Hit Streak 9 | . 5 8 . . 8 9 Robot Miss Streak 8 | . 8 3 . . 3 5 Penetration Max . | . . . . . . . Secondary Targets 1 | . 1 . . . . . Max Gunslinging Chain 1 | . 1 . . . . . Shots Hit Robots 132 | . 10 25 . . 51 46 Core Hits 92 | . 6 12 . . 33 41 Critical Kills . | . . . . . . . Critical Parts Destroyed . | . . . . . . . Critical Strikes 1 | . . . . . . 1 Burn 1 | . . . . . . 1 Melee Attacks 3 | . . . . . . 3 Impact . | . . . . . . . Slashing 3 | . . . . . . 3 Piercing . | . . . . . . . Sneak Attacks . | . . . . . . . Combat Hostiles . | . . . . . . . Follow-up Attacks . | . . . . . . . Damage Inflicted 3310 | . 155 332 . . 1226 1597 Guns 1230 | . 131 282 . . 410 407 Cannons 868 | . . . . . 472 396 Explosions 1126 | . 24 37 . . 331 734 Melee 27 | . . . . . . 27 Ramming 59 | . . 13 . . 13 33 Kinetic 1116 | . 52 83 . . 607 374 Thermal 853 | . 24 125 . . 275 429 Explosive 1016 | . . 37 . . 331 648 Electromagnetic 239 | . 79 74 . . . 86 Impact . | . . . . . . . Slashing 27 | . . . . . . 27 Piercing . | . . . . . . . Highest Corruption 8 | . . . . . . 8 Average Corruption 8 | . . . . . . 8 Corruption Purged . | . . . . . . . Corruption Blocked . | . . . . . . . Effects 5 | . . . . . . 5 Matter Fused 1 | . . . . . . 1 Heat Flow Errors 1 | . . . . . . 1 Parts Rejected 1 | . . . . . . 1 Weapon Failures 2 | . . . . . . 2 Overload Shots . | . . . . . . . Overflow Damage 21 | . . . . . 4 17 Projectiles . | . . . . . . . Explosions 21 | . . . . . 4 17 Melee . | . . . . . . . Knockbacks 4 | . . . . . 1 3 Impact 1 | . . . . . . 1 Kinetic 3 | . . . . . 1 2 Secondary . | . . . . . . . Self-Inflicted Damage 228 | . 41 13 . . 97 77 Shots 7 | . 1 1 . . 3 2 Rammed 7 | . . . . . . 7 Targets Rammed 15 | . . 1 . . 5 9 Kicked 8 | . . 1 . . 5 2 Crushed . | . . . . . . . Highest Temperature 509 | . . 167 . 144 427 509 Average Temperature 147 | . . 67 . 76 159 169 Received Heat Transfer 810 | . . 27 . . 351 432 Effects 10 | . . . . . 3 7 Shutdowns 3 | . . . . . . 3 Energy Bleed 2 | . . . . . 1 1 Interference 1 | . . . . . . 1 Matter Decay 2 | . . . . . 2 . Short Circuit 2 | . . . . . . 2 Siege Activations . | . . . . . . . Robots Corrupted . | . . . . . . . Combat Hostiles . | . . . . . . . Parts Fried . | . . . . . . . Impact Corruptions . | . . . . . . . Robots Melted . | . . . . . . . Combat Hostiles . | . . . . . . . Parts Melted 3 | . . . . . 2 1 Heat Transferred 1863 | . 50 370 . . 555 888 Parts Sabotaged . | . . . . . . . Parts Stolen . | . . . . . . . Parts Stripped . | . . . . . . . Power Chain Reactions 1 | . 1 . . . . . Alert | -11 -10 -9 -9 -9 -8 -8 ------- Run | Yrd Mat Mat Min Exi Min Mat Peak Influence 245 | . 186 245 140 . 241 233 Initial 95 | . . 78 95 . . 80 Average 125 | . 92 166 123 . 137 114 Maximum Alert Level 1 | . . 1 . . 1 1 Low Security (%) 82 | 100 100 61 100 . 82 83 Level 1 17 | . . 38 . . 17 16 Level 2 . | . . . . . . . Level 3 . | . . . . . . . Level 4 . | . . . . . . . Level 5 . | . . . . . . . High Security . | . . . . . . . Max Security . | . . . . . . . Squads Dispatched 4 | . . 1 . . 1 2 Investigation 1 | . . . . . 1 . Extermination . | . . . . . . . Reinforcement 3 | . . 1 . . . 2 Assault . | . . . . . . . Garrison . | . . . . . . . Intercept . | . . . . . . . Searches Triggered . | . . . . . . . Construction Impeded 1 | . . . . . . 1 Haulers Reinforced . | . . . . . . . Active Scanning Responses . | . . . . . . . Cargo Convoy Interrupts . | . . . . . . . Stealth | -11 -10 -9 -9 -9 -8 -8 --------- Run | Yrd Mat Mat Min Exi Min Mat Distress Signals 5 | . . 1 . . 1 3 Communications Jammed . | . . . . . . . Distress Signals . | . . . . . . . Times Spotted 51 | . 5 7 10 . 13 16 Peak Tracking Total 7 | . 3 3 7 . 3 7 Tactical Retreats 4 | . . 2 2 . . . Traps | -11 -10 -9 -9 -9 -8 -8 ------- Run | Yrd Mat Mat Min Exi Min Mat Traps Triggered . | . . . . . . . Indirectly . | . . . . . . . Trap Hack Attempts . | . . . . . . . Triggered . | . . . . . . . Disarmed . | . . . . . . . Reprogrammed . | . . . . . . . Reused . | . . . . . . . Traps Extracted . | . . . . . . . Installed . | . . . . . . . Triggered . | . . . . . . . Machines | -11 -10 -9 -9 -9 -8 -8 ---------- Run | Yrd Mat Mat Min Exi Min Mat Machines Disabled 5 | . 2 . . . 1 2 Max in Single Turn 2 | . 2 . . . 1 1 Machines Repaired . | . . . . . . . Machines Dismantled . | . . . . . . . Machines Sabotaged . | . . . . . . . Overloaded Fab Kills . | . . . . . . . Hacking | -11 -10 -9 -9 -9 -8 -8 --------- Run | Yrd Mat Mat Min Exi Min Mat Machines Accessed 12 | . 2 4 . 1 1 4 Terminals 9 | . 2 2 . . 1 4 Fabricators . | . . . . . . . Repair Stations 1 | . . 1 . . . . Recycling Units . | . . . . . . . Scanalyzers 1 | . . 1 . . . . Garrison Access . | . . . . . . . Total Hacks 50 | . 4 11 . 23 3 9 Successful 44 | . 3 8 . 23 3 7 Failed 6 | . 1 3 . . . 2 Catastrophic . | . . . . . . . Database Lockouts . | . . . . . . . Manual . | . . . . . . . Terminals 23 | . 4 7 . . 3 9 Fabricators . | . . . . . . . Repair Stations 2 | . . 2 . . . . Recycling Units . | . . . . . . . Scanalyzers 2 | . . 2 . . . . Garrison Access . | . . . . . . . Terminal Hacks 40 | . 3 4 . 23 3 7 Record 29 | . 1 2 . 23 3 . Robot Analysis 1 | . . 1 . . . . Prototype ID Bank 1 | . . . . . . 1 Branch Access Points 1 | . . . . . . 1 Emergency Access Points 1 | . . . . . . 1 Locate Traps 3 | . 1 . . . . 2 Recall Reinforcements 1 | . . 1 . . . . Hauler Manifests 2 | . 1 . . . . 1 Zone Layout 1 | . . . . . . 1 Fabricator Hacks . | . . . . . . . Repair Station Hacks 2 | . . 2 . . . . Scan Component 1 | . . 1 . . . . Repair 1 | . . 1 . . . . Recycling Unit Hacks . | . . . . . . . Scanalyzer 2 | . . 2 . . . . Insert Component 1 | . . 1 . . . . Analyze 1 | . . 1 . . . . Garrison Access Hacks . | . . . . . . . Unauthorized Hacks . | . . . . . . . Terminals . | . . . . . . . Fabricators . | . . . . . . . Repair Stations . | . . . . . . . Recycling Units . | . . . . . . . Scanalyzers . | . . . . . . . Garrison Access . | . . . . . . . Data Cores Recovered . | . . . . . . . Used . | . . . . . . . Hacking Detections 9 | . 2 4 . . 1 2 Full Trace Events 1 | . . . . . 1 . Feedback Events . | . . . . . . . Feedback Blocked . | . . . . . . . Robot Schematics Acquired . | . . . . . . . Robots Built . | . . . . . . . Authchips . | . . . . . . . Time . | . . . . . . . Total Robot Build Rating . | . . . . . . . Part Schematics Acquired 1 | . . 1 . . . . Parts Built . | . . . . . . . Authchips . | . . . . . . . Time . | . . . . . . . Total Part Build Rating . | . . . . . . . Parts Repaired 1 | . . 1 . . . . Time 26 | . . 26 . . . . Parts Recycled . | . . . . . . . Recycled Matter . | . . . . . . . Retrieved Matter . | . . . . . . . Retrieved Components . | . . . . . . . Parts Scanalyzed 1 | . . 1 . . . . Part Schematics Acquired 1 | . . 1 . . . . Parts Damaged . | . . . . . . . Bothacking | -11 -10 -9 -9 -9 -8 -8 ------------ Run | Yrd Mat Mat Min Exi Min Mat Used RIF Installer . | . . . . . . . Robots Hacked . | . . . . . . . Non-combat . | . . . . . . . Combat . | . . . . . . . Robot Hacks Applied . | . . . . . . . Relay Couplers Released . | . . . . . . . Fabnet Peak Effective % . | . . . . . . . Robots Rewired . | . . . . . . . Allies Hacked . | . . . . . . . Hacks Repelled . | . . . . . . . Allies | -11 -10 -9 -9 -9 -8 -8 -------- Run | Yrd Mat Mat Min Exi Min Mat Total Allies . | . . . . . . . Largest Group . | . . . . . . . Highest-Rated Group . | . . . . . . . Highest-Rated Ally . | . . . . . . . Total Orders . | . . . . . . . Ally Attacks . | . . . . . . . Total Damage . | . . . . . . . Kills . | . . . . . . . Allies Corrupted . | . . . . . . . Allies Melted . | . . . . . . . Intel | -11 -10 -9 -9 -9 -8 -8 ------- Run | Yrd Mat Mat Min Exi Min Mat Robot Analysis Total 1 | . . 1 . . . . Derelict Logs Recovered . | . . . . . . . Drone Launches . | . . . . . . . Drone Recoveries . | . . . . . . . Exploration | -11 -10 -9 -9 -9 -8 -8 ------------- Run | Yrd Mat Mat Min Exi Min Mat Turns Passed 2405 | 52 258 369 121 367 552 686 Spaces Moved 1535 | 43 170 228 99 301 331 363 Core 64 | 19 . . . . . 45 Treads . | . . . . . . . Legs 1466 | 19 170 228 99 301 331 318 Wheels 5 | 5 . . . . . . Hover . | . . . . . . . Flight . | . . . . . . . Fastest Speed 50 | 50 120 120 120 120 120 50 Average Speed 125 | 87 120 120 120 120 121 144 Slowest Speed 400 | 120 120 120 120 120 190 400 Overloaded Moves . | . . . . . . . Propulsion Burnouts . | . . . . . . . Robots Hopped . | . . . . . . . Cave-ins Triggered 1 | . . . . . . 1 Exploration Rate (%) 40 | 3 44 26 36 75 78 22 Regions Visited 6 Branch Regions 3 Pre-discovered Areas 1 | . . . . 1 . . Known Exits Taken . | . . . . . . . Unknown Exits Taken 6 | 1 1 1 1 1 1 . Scrap Searched 1 | . . . . . 1 . Spaces Dug . | . . . . . . . Terrain Destroyed 141 | . 39 12 . . 47 43 Melee . | . . . . . . . Projectile 5 | . . . . . 3 2 AOE 136 | . 39 12 . . 44 41 Terrain Rammed . | . . . . . . . Walls Destroyed . | . . . . . . . Machines Disabled . | . . . . . . . Actions | -11 -10 -9 -9 -9 -8 -8 --------- Run | Yrd Mat Mat Min Exi Min Mat Total 1808 | 55 194 292 101 302 407 457 Wait 69 | . . 36 2 . 12 19 Move 1529 | 42 169 227 98 300 330 363 Hop . | . . . . . . . Pick Up 35 | 6 6 5 . . 8 10 Fast Attach 4 | 3 . 1 . . . . Attach 21 | 3 1 4 . . 3 10 Detach . | . . . . . . . Swap 24 | 1 1 4 . . 12 6 Drop 15 | . 1 1 1 . 6 6 Fire 92 | . 15 13 . 2 31 31 Melee 3 | . . . . . . 3 Ram 7 | . . . . . . 7 Kick 8 | . . 1 . . 5 2 Crush . | . . . . . . . Escape Stasis . | . . . . . . . Rewire 1 | . 1 . . . . . Trap . | . . . . . . . Miscellaneous . | . . . . . . . Route ------- -11/Scrapyard -10/Materials -9/Materials -9/Mines -9/Exiles -8/Mines (discovered 2 exits: *Mat x2) -8/Materials History --------- Turn | Location | Event 5 | -11/Scrapyard | Discovered new exit (range 14) 53 | -11/Scrapyard | Entered Materials 267 | -10/Materials | Discovered new exit (range 14) 301 | -10/Materials | Build established: Mutant 311 | -10/Materials | Entered another Materials area 311 | -9/Materials | Evolved 2 slots: Propulsion x1, Weapon x1 410 | -9/Materials | Repaired EM Pulse Gun 601 | -9/Materials | Discovered new exit (range 5) 680 | -9/Materials | Entered Mines 687 | -9/Mines | Assembled infested the area 713 | -9/Mines | Build established: Gunner 793 | -9/Mines | Deemed a non-threat by the Exiles lab entrance 793 | -9/Mines | Discovered new exit (range 5) 801 | -9/Mines | Entered Exiles 840 | -9/Exiles | Met 8R-AWN 858 | -9/Exiles | Met EX-HEX 909 | -9/Exiles | Met EX-DEC 927 | -9/Exiles | Visited The Gauntlet 1078 | -9/Exiles | Learned location of Zion (-7) 1154 | -9/Exiles | Discovered new exit (range 14) 1168 | -9/Exiles | Entered Mines 1201 | -8/Mines | Discovered new exit (range 9) 1257 | -8/Mines | Discovered new exit (range 7) 1643 | -8/Mines | Build established: Scavenger-Gunner 1720 | -8/Mines | Entered Materials 1720 | -8/Materials | Evolved 2 slots: Propulsion x1, Utility x1 2316 | -8/Materials | Crushed by falling debris 2347 | -8/Materials | Lost 8 parts (3n5w) 2367 | -8/Materials | Core integrity fell below 50% 2396 | -8/Materials | Core integrity fell below 20% 2397 | -8/Materials | Lost 4 parts (1p2u1w) 2406 | -8/Materials | Destroyed by G-47 Trooper with Particle Gun Last Messages --------------- K-01 Serf collects debris. Mni. Grenade Launcher severed. G-47 Trooper destroyed. K-01 Serf collects debris. System corrupted: Matter fused (-9). K-01 Serf collects debris. Rnf. Deuterium Engine destroyed. Terrain Scanner destroyed. K-01 Serf collects debris. Connecting with Terminal... System corrupted: Heat flow error (+262). Slammed into L-31 Rogue. L-31 Rogue destroyed. [Achievement: Fist Fight] Acquired 20 matter. Slammed into G-47 Trooper. Acquired Katana. Neutrino Reactor explodes. G-47 Trooper destroyed. System corrupted: Katana rejected. Map ----- +----------------------------------------------------+ | ?????????#???#?????????????? ??????? | | ??????????#??????#???#??????+#??????? | | ??????###########????????### ######## | | ??????# #??????### ? | | ??????# +???? ?? | | ?#????# # ?????? """ " | | ??????# # #### " """" | | ??#???#! ######### " | | ??????# #????## | | #???#?# #?????# | | ? ##??# #????### % % | | ?# ??####+############ #% =%%! | | ?# ???# *% %*! | | # #### | | # + # ####### | | # # ################ # ### | | ?##### #?????????#????# ]####?# | | ???#?# #?????#?????#??# #??#?# | | ?###?# #??????#???##?## ##??## """ | | ##+### ############### #??# """ | | # # # #??## """ | | # # # T #???# | | # # # ##??# | | # ] + ####;######+### #??####### | | # # ##* g ## ########?#??#?# | | # "" # ## @ ## #?????????#???# " | | # "T # ## = ## #?#????????#??# " | | # "" # ##!*% ## #?????????????# " | | # # ##%*= ## #?#???????????# | | ###### ## = ## #?????????????# | | ?##??# ########## #?????????????### | | ???### #?#??????#####???????????????? | | ????# ##???#????#??????????????????? | | #??## #??#?#?###?##?????"??????????? | | ???## ####???###?????? ????????????? | | ??### ########?#???#???? ????????? | | ?####+## ## ! #?#?#?#? ?? ????????? | | ?# # ## ###########/?#??#???? | | ## # + """ ## # ###?????? | | ?# # # """ ## # ?##??#??? | | ?# / # # """ ## *=*# ?#?#????? | | ## /! # + ## *=*# ??????#?? | | ## # # ## =* # #??##???? | | ## # # = ## # #?##????? | | ######## # ## ! # #??#???## | | # # + "T" ## # ##???#??? | | # ""# # """ ## ! # ###?##??? | | # Y"# # # #+####^#####?##? | | # ""# ##+####### ###^## !##??# | | # # % !###? | +----------------------------------------------------+ Best States ------------- Heat Dissipation 31 Energy Generation 16 Energy Capacity 290 Matter Stores 300 Matter Capacity 300 Sight Range 16 Terrain Scan Range 14 Terrain Scan Density 85 Evasion (%) 55 Targeting Accuracy 5 Item Schematics ----------------- Med. Laser | -9/Materials | Scanalyzed Robot Schematics ------------------ None Fabricated ------------ Nothing Alien Tech Used ----------------- None Achievements -------------- Fist Fight GoHome() I Survived The Infestation Librarian Challenges ------------ None Game ------ Seed MappingCorruptionLeg Manual? 0 Play Time 00:55:52 Cumulative 5.1 hours Start 2024.04.01 @ 21:28:32 End 2024.04.01 @ 22:27:15 Sessions 1 Manual Loads 0 Difficulty Rogue Special Mode None Game No. 8 Rogue 8 Adventurer 0 Explorer 0 Win Type - Total 0 Types 0/0/0/0/0/0/0/0/0 Lore% 7 Gallery% 7 Achievement% 11 Wizard Run 0 Options --------- Layout 1 ASCII 0 Keyboard 0 Movement Mouse Keybinds 0 Fullscreen 2 Font 32/SmallcapsGlow Map View 50x35 Zoom Use 1% Tactical HUD 0 Map Filters NONE Filters NONE Steam 1 RUN: b179733d-4cf1-4d7d-b787-913fbfd4aa17